[Event "40th Eastman Open Ghent"]
[Site "Ghent"]
[Date "2017.07.15"]
[Round "1.9"]
[White "Michielsen, Joost"]
[Black "De Putter, Theo"]
[Result "1-0"]
[ECO "B48"]
[WhiteElo "2409"]
[BlackElo "1856"]
[Annotator "NA"]
[PlyCount "75"]
[EventDate "2017.??.??"]
[EventType "swiss"]
[EventCountry "BEL"]
[SourceTitle "playchess.com"]
[Source "ChessBase"]
[SourceQuality "1"]
[TimeControl "7200"]

1. e4 c5 2. Nf3 Nc6 3. Nc3 e6 4. d4 cxd4 5. Nxd4 Qc7 6. Be3 a6 7. Qd2 Nf6 8. O-O-O Bb4 9. f3 Ne5 10. Nb3 b5 11. Qe1 Be7 12. f4 Ng6 13. e5 Ng4 14. Bd2 Bb7 15. Bd3 Bh4 16. g3 Be7 17. Ne4 Rc8 18. h3 N4xe5 19. fxe5 Nxe5 20. Qe2 O-O 21. Rhe1 h6 22. g4 a5 23. Nf2 Nxd3+ 24. Qxd3 e5 25. Bxa5 Qb8 26. Kb1 Rc4 27. Bc3 e4 28. Qe2 Ba8 29. Bd4 Rfc8 30. Rd2 Bg5 31. Be3 Bf6 32. Nd1 Qc7 33. Rf1 Be5 34. Bd4 f6 35. Ne3 Rc6 36. Nd5 Qd6 37. Qxe4 Bxd4 38. Ne7+ 1-0

[Event "40th Eastman Open Ghent"]
[Site "Ghent"]
[Date "2017.07.15"]
[Round "1.10"]
[White "Van de Gevel, Ed"]
[Black "Sarrau, Jelle"]
[Result "0-1"]
[ECO "B50"]
[WhiteElo "1850"]
[BlackElo "2363"]
[Annotator "NA"]
[PlyCount "78"]
[EventDate "2017.??.??"]
[EventType "swiss"]
[EventCountry "BEL"]
[SourceTitle "playchess.com"]
[Source "ChessBase"]
[SourceQuality "1"]
[TimeControl "7200"]

1. e4 c5 2. Nf3 d6 3. c3 Nf6 4. Bd3 Bg4 5. h3 Bh5 6. Bc2 e6 7. d4 cxd4 8. cxd4 Be7 9. O-O O-O 10. Nc3 Nc6 11. Be3 Bg6 12. Rc1 d5 13. e5 Nd7 14. Qd2 Rc8 15. Bxg6 hxg6 16. Bg5 Nxd4 17. Bxe7 Nxf3+ 18. gxf3 Qxe7 19. f4 a6 20. Kh2 Rc4 21. Rg1 Rfc8 22. Rg5 b5 23. Rcg1 b4 24. Nd1 Nc5 25. R5g4 Ne4 26. Qd3 Qa7 27. R1g2 Qd4 28. Qxd4 Rxd4 29. Ne3 Kf8 30. h4 Rd2 31. h5 Nxf2 32. Rh4 Rc1 33. hxg6 Rh1+ 34. Kg3 Ne4+ 35. Kg4 Rxh4+ 36. Kxh4 Rxg2 37. Nxg2 fxg6 38. Kg4 Nf2+ 39. Kf3 Nd3 0-1

[Event "40th Eastman Open Ghent"]
[Site "Ghent"]
[Date "2017.07.15"]
[Round "1.11"]
[White "Van der Stricht, Geert"]
[Black "Cuypers, Dries"]
[Result "1-0"]
[ECO "A58"]
[WhiteElo "2358"]
[BlackElo "1847"]
[Annotator "NA"]
[PlyCount "75"]
[EventDate "2017.??.??"]
[EventType "swiss"]
[EventCountry "BEL"]
[SourceTitle "playchess.com"]
[Source "ChessBase"]
[SourceQuality "1"]
[TimeControl "7200"]

1. d4 Nf6 2. c4 c5 3. d5 b5 4. cxb5 a6 5. bxa6 Bxa6 6. Nc3 d6 7. Nf3 g6 8. g3 Bg7 9. Bg2 Nbd7 10. Rb1 Ng4 11. Qc2 O-O 12. Bd2 Nde5 13. Nxe5 Nxe5 14. b3 Rb8 15. O-O Qc7 16. h3 Rb7 17. Rfc1 Rfb8 18. Kh2 Qc8 19. Be1 Bh6 20. f4 Nd7 21. Ne4 Nf8 22. Bc3 Ra7 23. Nf2 f5 24. e4 e5 25. dxe6 Qxe6 26. Re1 Bb7 27. exf5 Qxf5 28. Ng4 Bg7 29. Re4 h5 30. Ne3 Qf7 31. Rd1 Bxe4 32. Bxe4 Kh7 33. Bd5 Qd7 34. a4 Bxc3 35. Qxc3 Qg7 36. Qd3 Re7 37. f5 Qf6 38. Rf1 1-0

[Event "40th Eastman Open Ghent"]
[Site "Ghent"]
[Date "2017.07.15"]
[Round "1.12"]
[White "Verduyckt, Johan"]
[Black "Van Beers, Eddy"]
[Result "0-1"]
[ECO "A48"]
[WhiteElo "1832"]
[BlackElo "2312"]
[Annotator "NA"]
[PlyCount "46"]
[EventDate "2017.??.??"]
[EventType "swiss"]
[EventCountry "BEL"]
[SourceTitle "playchess.com"]
[Source "ChessBase"]
[SourceQuality "1"]
[TimeControl "7200"]

1. d4 Nf6 2. Bf4 g6 3. Nf3 Bg7 4. h3 O-O 5. Nbd2 c5 6. e3 b6 7. Bd3 Bb7 8. O-O d6 9. a4 Nc6 10. Bc4 Rc8 11. c3 Qc7 12. Bg3 e5 13. Rc1 Qe7 14. dxe5 dxe5 15. Qe2 e4 16. Ne1 Rcd8 17. Nc2 Ne5 18. Ba2 Nh5 19. Bf4 Nd3 20. Rb1 Nhxf4 21. exf4 Nxf4 22. Qe3 Qg5 23. g3 Rxd2 0-1

[Event "40th Eastman Open Ghent"]
[Site "Ghent"]
[Date "2017.07.15"]
[Round "1.13"]
[White "Abolianin, Arthur"]
[Black "Kuijpers, Domien"]
[Result "1-0"]
[ECO "A00"]
[WhiteElo "2329"]
[BlackElo "1836"]
[Annotator "NA"]
[PlyCount "69"]
[EventDate "2017.??.??"]
[EventType "swiss"]
[EventCountry "BEL"]
[SourceTitle "playchess.com"]
[Source "ChessBase"]
[SourceQuality "1"]
[TimeControl "7200"]

1. g3 d5 2. Bg2 c6 3. c4 e6 4. Nf3 Nf6 5. O-O Be7 6. b3 O-O 7. Bb2 Nbd7 8. d3 Re8 9. Qc2 Nf8 10. Nbd2 b6 11. e4 Bb7 12. Qc3 Rc8 13. Ne5 a5 14. a3 Bc5 15. b4 d4 16. Qb3 axb4 17. axb4 Be7 18. Ra7 Rb8 19. Rxb7 Rxb7 20. Nxc6 Qc8 21. e5 Ng4 22. h3 Nh6 23. Nxd4 Rc7 24. b5 Nd7 25. Nc6 Nc5 26. Qc2 Rd7 27. d4 Nb7 28. Ra1 f6 29. Be4 f5 30. Bg2 Nf7 31. d5 Bc5 32. dxe6 Rxe6 33. Bd5 Rxd5 34. cxd5 Rg6 35. Ne7+ 1-0

[Event "40th Eastman Open Ghent"]
[Site "Ghent"]
[Date "2017.07.15"]
[Round "2.9"]
[White "Hakvoort, Elco"]
[Black "Michielsen, Joost"]
[Result "0-1"]
[ECO "D00"]
[WhiteElo "2037"]
[BlackElo "2409"]
[Annotator "NA"]
[PlyCount "72"]
[EventDate "2017.??.??"]
[EventType "swiss"]
[EventCountry "BEL"]
[SourceTitle "playchess.com"]
[Source "ChessBase"]
[SourceQuality "1"]
[TimeControl "7200"]

1. d4 d5 2. Bf4 Nf6 3. e3 c5 4. c3 Nc6 5. Nd2 e6 6. Ngf3 Bd6 7. Bg3 Qe7 8. Ne5 Nd7 9. Bb5 Ndxe5 10. dxe5 Bc7 11. f4 O-O 12. O-O Bd7 13. Bd3 f6 14. exf6 Qxf6 15. Qg4 Qf7 16. e4 c4 17. Bc2 b5 18. e5 Bb6+ 19. Kh1 Ne7 20. Nf3 Nf5 21. Bxf5 Qxf5 22. Qxf5 Rxf5 23. Nd4 Bxd4 24. cxd4 Be8 25. Be1 g5 26. Bd2 gxf4 27. g4 Rf8 28. Rxf4 Rxf4 29. Bxf4 a5 30. a3 Rb8 31. Bd2 b4 32. axb4 axb4 33. b3 Bg6 34. Ra2 Bb1 35. Rb2 Be4+ 36. Kg1 c3 0-1

[Event "40th Eastman Open Ghent"]
[Site "Ghent"]
[Date "2017.07.15"]
[Round "2.10"]
[White "Sarrau, Jelle"]
[Black "Hagendijk, Klaas"]
[Result "1-0"]
[ECO "A05"]
[WhiteElo "2363"]
[BlackElo "2029"]
[Annotator "NA"]
[PlyCount "39"]
[EventDate "2017.??.??"]
[EventType "swiss"]
[EventCountry "BEL"]
[SourceTitle "playchess.com"]
[Source "ChessBase"]
[SourceQuality "1"]
[TimeControl "7200"]

1. Nf3 Nf6 2. c4 b6 3. g3 Bb7 4. Bg2 g6 5. O-O Bg7 6. d4 O-O 7. d5 c6 8. Nc3 cxd5 9. cxd5 d6 10. Nd4 Na6 11. Bf4 Nh5 12. Be3 Nc7 13. Qb3 Kh8 14. a4 Rb8 15. Ncb5 a6 16. Na7 Qd7 17. Nac6 Bxc6 18. Nxc6 Rb7 19. Rac1 a5 20. Nxa5 1-0

[Event "40th Eastman Open Ghent"]
[Site "Ghent"]
[Date "2017.07.15"]
[Round "2.11"]
[White "Schriemer, Oene"]
[Black "Van der Stricht, Geert"]
[Result "1/2-1/2"]
[ECO "B20"]
[WhiteElo "2005"]
[BlackElo "2358"]
[Annotator "NA"]
[PlyCount "49"]
[EventDate "2017.??.??"]
[EventType "swiss"]
[EventCountry "BEL"]
[SourceTitle "playchess.com"]
[Source "ChessBase"]
[SourceQuality "1"]
[TimeControl "7200"]

1. e4 c5 2. a3 d5 3. exd5 Qxd5 4. Nc3 Qd8 5. Bc4 e6 6. Nf3 Nc6 7. O-O Nf6 8. Re1 Be7 9. d3 O-O 10. h3 a6 11. Bf4 b5 12. Ba2 Bb7 13. Ne5 Bd6 14. Nxf7 Rxf7 15. Bxd6 Qxd6 16. Bxe6 Nd8 17. Bxf7+ Nxf7 18. Ne4 Qb6 19. Nxf6+ Qxf6 20. Qe2 Rf8 21. Qe7 Qc6 22. Qe4 Qc7 23. Qe7 Qc8 24. Re3 Qc6 25. Qe4 1/2-1/2

[Event "40th Eastman Open Ghent"]
[Site "Ghent"]
[Date "2017.07.15"]
[Round "2.12"]
[White "Van Beers, Eddy"]
[Black "Hillebrandt, Remco"]
[Result "1-0"]
[ECO "C50"]
[WhiteElo "2312"]
[BlackElo "1980"]
[Annotator "NA"]
[PlyCount "85"]
[EventDate "2017.??.??"]
[EventType "swiss"]
[EventCountry "BEL"]
[SourceTitle "playchess.com"]
[Source "ChessBase"]
[SourceQuality "1"]
[TimeControl "7200"]

1. e4 e5 2. Nf3 Nc6 3. Bc4 Bc5 4. O-O Qe7 5. c3 d6 6. a4 a6 7. d3 Nf6 8. Re1 Ba7 9. Na3 O-O 10. h3 h6 11. d4 Rd8 12. d5 Nb8 13. Nc2 Nbd7 14. b4 Nf8 15. Bf1 g5 16. Nh2 Ng6 17. g3 Kh7 18. Qf3 Rg8 19. Kh1 Bd7 20. Ne3 Bxe3 21. Bxe3 Rg7 22. Ng4 Ng8 23. Bd2 Rf8 24. Ne3 Qf6 25. Qxf6 Nxf6 26. f3 Nh5 27. Kh2 f6 28. c4 Rgf7 29. c5 Ng7 30. g4 Ne8 31. Rec1 h5 32. c6 bxc6 33. dxc6 Bc8 34. Bc4 Rg7 35. b5 axb5 36. Bxb5 Nh4 37. Kg3 f5 38. exf5 Nf6 39. Bc3 hxg4 40. hxg4 Re7 41. a5 e4 42. Bxf6 Rxf6 43. Nd5 1-0

[Event "40th Eastman Open Ghent"]
[Site "Ghent"]
[Date "2017.07.15"]
[Round "2.13"]
[White "Van der Linden, Marco"]
[Black "Abolianin, Arthur"]
[Result "1/2-1/2"]
[ECO "A40"]
[WhiteElo "1995"]
[BlackElo "2329"]
[Annotator "NA"]
[PlyCount "85"]
[EventDate "2017.??.??"]
[EventType "swiss"]
[EventCountry "BEL"]
[SourceTitle "playchess.com"]
[Source "ChessBase"]
[SourceQuality "1"]
[TimeControl "7200"]

1. d4 Nc6 2. d5 Ne5 3. f4 Ng6 4. e4 e5 5. dxe6 fxe6 6. Nc3 Bc5 7. Nh3 d6 8. Na4 Bb4+ 9. c3 Ba5 10. b4 Bb6 11. Nxb6 axb6 12. Bd3 Qh4+ 13. Nf2 Nxf4 14. Bb5+ Ke7 15. g3 Qh5 16. Qxh5 Nxh5 17. O-O Nhf6 18. e5 dxe5 19. Re1 Bd7 20. Bf1 Nd5 21. Bb2 Ngf6 22. Rxe5 Rhd8 23. a3 b5 24. c4 bxc4 25. Bxc4 Nb6 26. Bb3 Na4 27. Bc1 Ra6 28. Bf4 Rda8 29. Rc1 Ne8 30. Ne4 Nb2 31. Nc5 Rxa3 32. Bxe6 Bxe6 33. Rxe6+ Kf7 34. Rce1 Nd3 35. Re7+ Kf8 36. Nd7+ Kg8 37. Rxe8+ Rxe8 38. Rxe8+ Kf7 39. Re4 Ra1+ 40. Kg2 Ra2+ 41. Kg1 Ra1+ 42. Kg2 Ra2+ 43. Kg1 1/2-1/2

[Event "40th Eastman Open Ghent"]
[Site "Ghent"]
[Date "2017.07.16"]
[Round "3"]
[White "Michielsen, Joost"]
[Black "Boons, Patrick"]
[Result "1-0"]
[ECO "B01"]
[WhiteElo "2409"]
[BlackElo "2001"]
[Annotator "RC"]
[PlyCount "105"]
[EventDate "2017.??.??"]
[EventType "swiss"]
[EventCountry "BEL"]
[SourceTitle "playchess.com"]
[Source "ChessBase"]
[SourceQuality "1"]
[TimeControl "7200"]

1. e4 {[%emt 0:00:47]} d5 {[%emt 0:00:05]} 2. exd5 {[%emt 0:00:06]} Qxd5 {[%emt 0:00:04]} 3. Nc3 {[%emt 0:00:11]} Qd6 {[%emt 0:01:24]} 4. d4 {[%emt 0:00:12]} Nf6 {[%emt 0:03:37]} 5. Nf3 {[%emt 0:01:10]} a6 {[%emt 0:02:15]} 6. Ne5 {[%emt 0:02:01]} Nc6 {[%emt 0:03:47]} 7. Bf4 {[%emt 0:17:29]} Qxd4 {[%emt 0:10:39]} 8. Nxc6 {[%emt 0:01:52]} Qxd1+ {[%emt 0:00:11]} 9. Rxd1 {[%emt 0:00:08]} bxc6 {[%emt 0:00:05]} 10. Bxc7 {[%emt 0:00:12]} Bb7 {[%emt 0:02:26]} 11. Na4 {[%emt 0:06:57]} Nd5 {[%emt 0:04:58]} 12. Be5 {[%emt 0:00:21]} e6 {[%emt 0:00:42]} 13. Bd4 {[%emt 0:17:13]} Nb4 {[%emt 0:13:25]} 14. Rd2 {[%emt 0:01:49]} a5 {[%emt 0:00:24]} 15. Bc4 {[%emt 0:17:29]} Ba6 {[%emt 0:06:26]} 16. Nb6 {[%emt 0:03:12]} Rd8 {[%emt 0:03:08]} 17. c3 {[%emt 0:00:49]} Bxc4 {[%emt 0:01:11]} 18. Nxc4 {[%emt 0:00:05]} c5 {[%emt 0:00:07]} 19. Be5 {[%emt 0:04:35]} Nd3+ {[%emt 0:01:19]} 20. Ke2 {[%emt 0:00:02]} Nxe5 {[%emt 0:00:29]} 21. Nxe5 {[%emt 0:00:06]} Rxd2+ {[%emt 0:00:05]} 22. Kxd2 {[%emt 0:00:05]} Bd6 {[%emt 0:00:05]} 23. Re1 {[%emt 0:02:19]} Ke7 {[%emt 0:01:49]} 24. Nc6+ {[%emt 0:11:57]} Kd7 {[%emt 0:00:56]} 25. Nxa5 {[%emt 0:00:06]} Ra8 {[%emt 0:00:28]} 26. Nc4 {[%emt 0:00:07]} Rxa2 {[%emt 0:00:27]} 27. Rd1 {[%emt 0:01:00]} Ra6 {[%emt 0:00:46]} 28. Ke3 {[%emt 0:03:33]} Ke7 {[%emt 0:05:43]} 29. Rxd6 {[%emt 0:02:05]} Rxd6 {[%emt 0:00:09]} 30. Nxd6 {[%emt 0:00:03]} Kxd6 {[%emt 0:00:04]} 31. Ke4 {[%emt 0:02:41]} f5+ {[%emt 0:00:56]} 32. Kd3 {[%emt 0:00:37]} e5 {[%emt 0:00:34]} 33. Kc4 {[%emt 0:00:23]} g6 {[%emt 0:01:54]} 34. b4 {[%emt 0:01:23]} cxb4 {[%emt 0:01:16]} 35. cxb4 {[%emt 0:00:05]} Kc6 {[%emt 0:00:02]} 36. f3 {[%emt 0:01:24]} g5 {[%emt 0:03:26]} 37. b5+ {[%emt 0:00:12]} Kd6 {[%emt 0:00:11]} 38. b6 {[%emt 0:00:22]} g4 {[%emt 0:01:18]} 39. fxg4 {[%emt 0:00:33]} fxg4 {[%emt 0:00:11]} 40. b7 {[%emt 0:00:11]} Kc7 {[%emt 0:00:06]} 41. Kd5 {[%emt 0:00:04]} Kxb7 {[%emt 0:00:15]} 42. Kxe5 {[%emt 0:00:05]} Kc7 {[%emt 0:00:11]} 43. Kf4 {[%emt 0:00:08]} Kd7 {[%emt 0:00:07]} 44. Kxg4 {[%emt 0:00:05]} Ke7 {[%emt 0:00:04]} 45. Kg5 {[%emt 0:00:16]} Kf7 {[%emt 0:00:05]} 46. Kh6 {[%emt 0:00:04]} Kg8 {[%emt 0:00:08]} 47. g4 {[%emt 0:00:23]} Kh8 {[%emt 0:00:04]} 48. g5 {[%emt 0:00:06]} Kg8 {[%emt 0:00:05]} 49. h3 {[%emt 0:01:57]} Kh8 {[%emt 0:00:08]} 50. h4 {[%emt 0:00:05]} Kg8 {[%emt 0:00:05]} 51. h5 {[%emt 0:00:04]} Kh8 {[%emt 0:00:14]} 52. g6 {[%emt 0:00:05]} hxg6 {[%emt 0:01:44]} 53. hxg6 {[%emt 0:00:06]} 1-0

[Event "40th Eastman Open Ghent"]
[Site "Ghent"]
[Date "2017.07.16"]
[Round "3"]
[White "Lammens, Tim"]
[Black "Ongena, Niels"]
[Result "1-0"]
[ECO "A05"]
[WhiteElo "2304"]
[BlackElo "1879"]
[Annotator "NA RC"]
[PlyCount "67"]
[EventDate "2017.??.??"]
[EventType "swiss"]
[EventCountry "BEL"]
[SourceTitle "playchess.com"]
[Source "ChessBase"]
[SourceQuality "1"]
[TimeControl "7200"]

1. Nf3 {[%emt 0:09:45]} Nf6 {[%emt 0:00:16]} 2. g3 {[%emt 0:00:28]} g6 {[%emt 0:00:13]} 3. b3 {[%emt 0:00:04]} Bg7 {[%emt 0:00:08]} 4. Bb2 {[%emt 0:00:01]} O-O {[%emt 0:00:15]} 5. Bg2 {[%emt 0:00:07]} d6 {[%emt 0:00:25]} 6. d4 {[%emt 0:00:06]} Nbd7 {[%emt 0:01:00]} 7. O-O {[%emt 0:00:27]} c6 {[%emt 0:01:04]} 8. Nbd2 {[%emt 0:00:34]} Qc7 {[%emt 0:01:21]} 9. e4 {[%emt 0:00:43]} e5 {[%emt 0:03:19]} 10. dxe5 {[%emt 0:00:35] A49: 1 d4 Nf6 2 Nf3 g6 3 g3: Anti-King's Indian systems} dxe5 {[%emt 0:00:12]} 11. Re1 {[%emt 0:00:26]} (11. Qe2 Re8 12. Rfd1 b6 13. Nc4 Ba6 14. Ne1 Nc5 15. f3 Nfd7 16. Bf1 Ne6 17. Qf2 Ndc5 {1-0 (44) Czebe,A (2475)-Haring,F (2328) Senica 2017}) 11... b5 {[%emt 0:02:15]} 12. a4 {[%emt 0:00:32]} Bb7 {[%emt 0:02:05]} 13. Qe2 {[%emt 0:02:53]} a6 {[%emt 0:00:47]} 14. c4 $146 {[%emt 0:02:00]} ({Predecessor:} 14. h3 Rfe8 15. Ba3 Rad8 16. Qe3 Ba8 17. Bf1 Qb7 {1-0 (39) Cosma,E (2332)-Bogdan,E (1829) Baile Olanesti 2013}) 14... b4 {[%emt 0:09:32]} 15. c5 {[%emt 0:00:49]} a5 {[%emt 0:04:22]} 16. h3 {[%emt 0:08:06]} (16. Nc4 $14) 16... Ba6 {[%emt 0:01:53]} 17. Qe3 {[%emt 0:00:07]} h6 {[%emt 0:01:33]} ({Black should play} 17... Nh5 $15) 18. Bf1 {[%emt 0:01:01]} Bxf1 {[%emt 0:01:07]} 19. Rxf1 {[%emt 0:00:08]} Rfd8 {[%emt 0:01:17]} 20. Nc4 {[%emt 0:01:59]} Nh7 {[%emt 0:01:16]} 21. Rfd1 {[%emt 0:09:50]} Nhf8 {[%emt 0:01:09]} 22. Rd6 {[%emt 0:04:23]} ({White should play} 22. Rab1 $16) 22... Ne6 {[%emt 0:01:11]} 23. Rad1 {[%emt 0:29:50]} Nexc5 {[%emt 0:13:55]} 24. Nfxe5 {[%emt 0:01:59]} Nxe5 {[%emt 0:00:25]} 25. Bxe5 {[%emt 0:00:38]} Bxe5 {[%emt 0:00:47]} 26. Rxd8+ {[%emt 0:00:12]} Rxd8 {[%emt 0:00:28]} 27. Rxd8+ {[%emt 0:00:04]} Qxd8 {[%emt 0:00:03]} 28. Qxc5 {[%emt 0:00:31]} Qd1+ {[%emt 0:05:32]} 29. Kg2 {[%emt 0:00:11]} Qxb3 {[%emt 0:02:11]} 30. Nxe5 {[%emt 0:00:40]} Qxa4 {[%emt 0:00:18]} 31. Nd7 {[%emt 0:01:35]} Qa1 {[%emt 0:02:59]} 32. Qf8+ $2 {[%emt 0:00:38]} (32. e5 {mates} Kh7 33. Qf8 Qg1+ 34. Kxg1 g5 35. Qxf7+ Kh8 36. Nf6 c5 37. Qh7#) 32... Kh7 {[%emt 0:00:10]} 33. Qxf7+ {[%emt 0:00:06]} Qg7 {[%emt 0:01:19]} 34. Nf6+ {[%emt 0:00:10]} 1-0

[Event "40th Eastman Open Ghent"]
[Site "Ghent"]
[Date "2017.07.16"]
[Round "3"]
[White "Fischer, Daniel"]
[Black "Van Beers, Eddy"]
[Result "1/2-1/2"]
[ECO "B90"]
[WhiteElo "2116"]
[BlackElo "2312"]
[Annotator "NA RC"]
[PlyCount "67"]
[EventDate "2017.??.??"]
[EventType "swiss"]
[EventCountry "BEL"]
[SourceTitle "playchess.com"]
[Source "ChessBase"]
[SourceQuality "1"]
[TimeControl "7200"]

1. e4 {[%emt 0:00:03]} c5 {[%emt 0:00:06]} 2. Nf3 {[%emt 0:00:05]} d6 {[%emt 0:00:05]} 3. d4 {[%emt 0:00:03]} cxd4 {[%emt 0:00:05]} 4. Nxd4 {[%emt 0:00:04]} Nf6 {[%emt 0:00:06]} 5. Nc3 {[%emt 0:00:04]} a6 {[%emt 0:00:05]} 6. Be3 {[%emt 0:00:03]} e5 {[%emt 0:00:09]} 7. Nb3 {[%emt 0:00:04]} Be7 {[%emt 0:00:10]} 8. h3 {[%emt 0:00:04] B90: Sicilian Najdorf: Unusual White 6th moves, 6 Be3 Ng4 and 6 Be3 e5} (8. Qd2 Be6 9. O-O-O Nbd7 10. f4 exf4 11. Bxf4 Ne5 12. Nd4 O-O 13. g3 Qd7 14. Nf5 Bxf5 15. exf5 Qxf5 16. Bg2 Rac8 17. Kb1 Nc4 18. Qd3 Qa5 19. Nd5 Nxd5 20. Bxd5 {1-0 (43) Morozevich,A (2676)-Nepomniachtchi,I (2767) Doha 2016}) 8... Be6 {[%emt 0:10:34]} 9. f4 {[%emt 0:00:05]} exf4 {[%emt 0:01:15]} 10. Bxf4 {[%emt 0:00:04]} Nc6 {[%emt 0:01:03]} 11. Qe2 {[%emt 0:01:31]} O-O {[%emt 0:04:12]} 12. O-O-O {[%emt 0:00:30]} Qc7 {[%emt 0:02:51]} 13. g4 {[%emt 0:01:20]} Rac8 {[%emt 0:04:21]} 14. Kb1 {[%emt 0:01:28]} Ne5 {[%emt 0:06:01]} 15. g5 {[%emt 0:01:24]} Nfd7 {[%emt 0:01:06]} 16. Nd5 {[%emt 0:02:38]} Bxd5 {[%emt 0:01:15]} 17. exd5 {[%emt 0:00:05]} Rfe8 {[%emt 0:05:08]} 18. Qg2 {[%emt 0:03:09]} Bf8 {[%emt 0:08:11]} 19. h4 $146 {[%emt 0:04:09]} g6 {[%emt 0:15:01]} 20. h5 {[%emt 0:06:08]} Bg7 {[%emt 0:00:36]} 21. hxg6 {[%emt 0:00:47]} hxg6 {[%emt 0:00:41]} 22. Bc1 {[%emt 0:12:08]} ({Don't take} 22. Qh2 $6 Kf8 $14) (22. c3 $142) 22... Qb6 {[%emt 0:08:36]} (22... Nc4 $142) 23. Rh4 {[%emt 0:06:10]} a5 {[%emt 0:13:27]} 24. Be2 {[%emt 0:10:16]} Nc5 {[%emt 0:09:26]} 25. Rdh1 {[%emt 0:09:29]} Nxb3 {[%emt 0:03:08]} 26. Qh3 $2 {[%emt 0:07:50]} ({Less strong is} 26. cxb3 Qc5 $14) (26. axb3 $18 a4 27. bxa4) 26... Kf8 {[%emt 0:02:27]} 27. axb3 {[%emt 0:01:07]} Ke7 {[%emt 0:02:14]} 28. Rh7 {[%emt 0:07:33]} Rh8 {[%emt 0:01:27]} 29. Qf1 {[%emt 0:02:43]} Rxh7 {[%emt 0:00:40]} 30. Rxh7 {[%emt 0:00:04]} Kf8 {[%emt 0:00:09]} 31. Bf3 {[%emt 0:04:02]} (31. Qh1 $5 {[%cal Rh7h8]} Re8 32. Qg2 $14) 31... Kg8 {[%emt 0:01:54]} (31... a4 $5 32. Qh3 Qc5 $11) 32. Rh4 {[%emt 0:01:12]} Qc5 {[%emt 0:01:24]} 33. Be4 {[%emt 0:00:59]} b5 {[%emt 0:01:20]} 34. Qe2 $15 {[%emt 0:03:35]} 1/2-1/2

[Event "40th Eastman Open Ghent"]
[Site "Ghent"]
[Date "2017.07.16"]
[Round "3"]
[White "van Akkeren, Arno"]
[Black "Sarrau, Jelle"]
[Result "0-1"]
[ECO "B22"]
[WhiteElo "2086"]
[BlackElo "2363"]
[Annotator "RC"]
[PlyCount "64"]
[EventDate "2017.??.??"]
[EventType "swiss"]
[EventCountry "BEL"]
[SourceTitle "playchess.com"]
[Source "ChessBase"]
[SourceQuality "1"]
[TimeControl "7200"]

1. e4 {[%emt 0:00:03]} c5 {[%emt 0:00:25]} 2. c3 {[%emt 0:00:07]} d6 {[%emt 0:00:10]} 3. d4 {[%emt 0:00:05]} Nf6 {[%emt 0:00:05]} 4. Bd3 {[%emt 0:01:01]} g6 {[%emt 0:00:07]} 5. Nf3 {[%emt 0:00:17]} Bg7 {[%emt 0:00:08]} 6. O-O {[%emt 0:00:50]} O-O {[%emt 0:00:14]} 7. h3 {[%emt 0:01:46]} Nfd7 {[%emt 0:00:41]} 8. Be3 {[%emt 0:10:29]} Nc6 {[%emt 0:00:20]} 9. d5 {[%emt 0:03:23]} Nce5 {[%emt 0:00:22]} 10. Nxe5 {[%emt 0:00:21]} Nxe5 {[%emt 0:00:44]} 11. f4 {[%emt 0:06:40]} Nxd3 {[%emt 0:00:26]} 12. Qxd3 {[%emt 0:00:06]} Qb6 {[%emt 0:02:29]} 13. b4 {[%emt 0:13:22]} Bd7 {[%emt 0:18:01]} 14. Nd2 {[%emt 0:11:25]} Qb5 {[%emt 0:06:12]} 15. c4 {[%emt 0:07:59]} Qa4 {[%emt 0:05:36]} 16. Rab1 {[%emt 0:00:59]} cxb4 {[%emt 0:01:39]} 17. Bd4 {[%emt 0:03:26]} Bxd4+ {[%emt 0:11:51]} 18. Qxd4 {[%emt 0:00:08]} Qa5 {[%emt 0:00:11]} 19. Kf2 {[%emt 0:17:00]} Rac8 {[%emt 0:08:47]} 20. Ke3 {[%emt 0:05:06]} b5 {[%emt 0:08:06]} 21. f5 {[%emt 0:09:36]} bxc4 {[%emt 0:03:14]} 22. fxg6 {[%emt 0:06:54]} hxg6 {[%emt 0:00:36]} 23. Nxc4 {[%emt 0:05:13]} Qxa2 {[%emt 0:01:23]} 24. Rxb4 {[%emt 0:00:11]} Qxg2 {[%emt 0:01:14]} 25. Rf2 {[%emt 0:03:31]} Qg3+ {[%emt 0:00:35]} 26. Kd2 {[%emt 0:01:41]} Rb8 {[%emt 0:03:02]} 27. Rxb8 {[%emt 0:02:17]} Rxb8 {[%emt 0:00:07]} 28. e5 {[%emt 0:01:29]} dxe5 {[%emt 0:03:49]} 29. Nxe5 {[%emt 0:00:06]} Rb2+ {[%emt 0:01:02]} 30. Qxb2 {[%emt 0:00:04]} Qxf2+ {[%emt 0:00:06]} 31. Kc3 {[%emt 0:00:09]} Qc5+ {[%emt 0:02:18]} 32. Nc4 {[%emt 0:00:16]} Bb5 {[%emt 0:00:52]} 0-1